[Event "11th LCC Super Blitz 2019"]
[Site "London"]
[Date "2019.12.08"]
[Round "6.9"]
[White "Stamatopoulos, Apostolos"]
[Black "Ignatovic, Ernest"]
[Result "1-0"]
[ECO "E61"]
[WhiteElo "1782"]
[BlackElo "1703"]
[Annotator "NA"]
[PlyCount "47"]
[EventDate "2019.12.08"]
[EventType "swiss"]
[EventCountry "ENG"]
[SourceTitle "playchess.com"]
[Source "ChessBase"]
[SourceQuality "1"]
[TimeControl "180+2"]

1. d4 {[%emt 0:53:03]} Nf6 {[%emt 0:00:02]} 2. Nf3 d6 {[%emt 0:00:03]} 3. c4 {[%emt 0:00:03]} g6 {[%emt 0:00:03]} 4. Nc3 {[%emt 0:00:01]} Bg7 {[%emt 0:00:05]} 5. h3 {[%emt 0:00:06]} O-O {[%emt 0:00:16]} 6. Bf4 Nbd7 {[%emt 0:00:17]} 7. e3 {[%emt 0:00:02]} b6 {[%emt 0:00:11]} 8. Be2 Bb7 {[%emt 0:00:01]} 9. O-O {[%emt 0:00:02]} Qe8 10. Qc2 {[%emt 0:00:10]} e5 {[%emt 0:00:26]} 11. Bh2 e4 {[%emt 0:00:34]} 12. Nd2 {[%emt 0:00:01]} a5 {[%emt 0:00:50]} 13. a3 {[%emt 0:00:05]} Qe7 {[%emt 0:00:04]} 14. b4 {[%emt 0:00:05]} axb4 {[%emt 0:00:01]} 15. axb4 {[%emt 0:00:02]} Rxa1 16. Rxa1 {[%emt 0:00:01]} Ra8 {[%emt 0:00:01]} 17. Rxa8+ {[%emt 0:00:07]} Bxa8 {[%emt 0:00:01]} 18. d5 {[%emt 0:00:01]} Ne8 {[%emt 0:00:23]} 19. Ndxe4 {[%emt 0:00:16]} f5 {[%emt 0:00:01]} 20. Nd2 Ne5 {[%emt 0:00:06]} 21. Nb5 {[%emt 0:00:06]} Nf6 {[%emt 0:00:08]} 22. Nd4 Bb7 {[%emt 0:00:06]} 23. Ne6 {[%emt 0:00:05]} Bh8 {[%emt 0:00:04]} 24. Qc3 {[%emt 0:00:01]} 1-0

[Event "11th LCC Super Blitz 2019"]
[Site "London"]
[Date "2019.12.08"]
[Round "6.9"]
[White "Zhao, Haolin"]
[Black "Sheikh, Anum"]
[Result "1/2-1/2"]
[ECO "B23"]
[WhiteElo "1725"]
[BlackElo "1560"]
[Annotator "NA"]
[PlyCount "76"]
[EventDate "2019.12.08"]
[EventType "swiss"]
[EventCountry "ENG"]
[SourceTitle "playchess.com"]
[Source "ChessBase"]
[SourceQuality "1"]
[TimeControl "180+2"]

1. e4 {[%emt 0:00:02]} c5 2. Nc3 {[%emt 0:00:00]} e6 {[%emt 0:00:00]} 3. f4 {[%emt 0:00:01]} d5 {[%emt 0:00:01]} 4. Bb5+ {[%emt 0:00:04]} Nc6 {[%emt 0:00:03]} 5. Nf3 {[%emt 0:00:04]} d4 {[%emt 0:00:05]} 6. Ne2 {[%emt 0:00:02]} Nf6 {[%emt 0:00:04]} 7. d3 {[%emt 0:00:01]} Be7 {[%emt 0:00:05]} 8. O-O {[%emt 0:00:03]} O-O {[%emt 0:00:02]} 9. Qe1 {[%emt 0:00:01]} Qc7 {[%emt 0:00:07]} 10. Ng3 {[%emt 0:00:19]} a6 {[%emt 0:00:05]} 11. Bxc6 {[%emt 0:00:02]} Qxc6 {[%emt 0:00:06]} 12. f5 {[%emt 0:00:06]} b5 {[%emt 0:00:11]} 13. Ne5 {[%emt 0:00:14]} Qc7 {[%emt 0:00:06]} 14. Bf4 {[%emt 0:00:02]} Bd6 {[%emt 0:00:01]} 15. Ng6 {[%emt 0:00:16]} hxg6 {[%emt 0:00:04]} 16. e5 {[%emt 0:00:01]} exf5 {[%emt 0:00:26]} 17. exd6 {[%emt 0:00:05]} Qd7 {[%emt 0:00:08]} 18. Qe7 {[%emt 0:00:06]} Re8 {[%emt 0:00:12]} 19. Qxd7 {[%emt 0:00:04]} Bxd7 {[%emt 0:00:01]} 20. Rfe1 {[%emt 0:00:24]} Nd5 {[%emt 0:00:06]} 21. Bg5 {[%emt 0:00:05]} f6 {[%emt 0:00:03]} 22. Bd2 {[%emt 0:00:01]} Re6 {[%emt 0:00:22]} 23. Rxe6 {[%emt 0:00:03]} Bxe6 {[%emt 0:00:01]} 24. Re1 {[%emt 0:00:02]} Kf7 {[%emt 0:00:02]} 25. Ne2 {[%emt 0:00:08]} Rd8 {[%emt 0:00:02]} 26. Nf4 {[%emt 0:00:01]} Rxd6 {[%emt 0:00:05]} 27. Nxd5 {[%emt 0:00:04]} Rxd5 {[%emt 0:00:07]} 28. Bf4 {[%emt 0:00:02]} g5 {[%emt 0:00:03]} 29. Bg3 {[%emt 0:00:05]} f4 {[%emt 0:00:02]} 30. Bf2 {[%emt 0:00:01]} Bf5 {[%emt 0:00:10]} 31. Kf1 {[%emt 0:00:09]} c4 {[%emt 0:00:05]} 32. Ke2 {[%emt 0:00:02]} Re5+ {[%emt 0:00:02]} 33. Kd2 {[%emt 0:00:01]} Rd5 {[%emt 0:00:09]} 34. Bg1 {[%emt 0:00:12]} cxd3 {[%emt 0:00:18]} 35. cxd3 {[%emt 0:00:01]} Be6 {[%emt 0:00:19]} 36. a3 {[%emt 0:00:05]} f5 {[%emt 0:00:03]} 37. Rc1 {[%emt 0:00:04]} Rd6 {[%emt 0:00:06]} 38. Rc5 {[%emt 0:00:04]} Kf6 {[%emt 0:00:08]} 1/2-1/2

[Event "11th LCC Super Blitz 2019"]
[Site "London"]
[Date "2019.12.08"]
[Round "6.10"]
[White "Rahman, Asad"]
[Black "Nunn, Petra"]
[Result "1-0"]
[ECO "B78"]
[WhiteElo "1923"]
[BlackElo "1908"]
[Annotator "NA"]
[PlyCount "99"]
[EventDate "2019.12.08"]
[EventType "swiss"]
[EventCountry "ENG"]
[SourceTitle "playchess.com"]
[Source "ChessBase"]
[SourceQuality "1"]
[TimeControl "180+2"]

1. e4 {[%emt 0:00:00]} c5 {[%emt 0:00:00]} 2. Nf3 {[%emt 0:00:01]} d6 {[%emt 0:00:01]} 3. d4 {[%emt 0:00:01]} cxd4 {[%emt 0:00:01]} 4. Nxd4 {[%emt 0:00:01]} Nf6 {[%emt 0:00:02]} 5. Nc3 {[%emt 0:00:01]} g6 {[%emt 0:00:01]} 6. Be3 {[%emt 0:00:02]} Bg7 {[%emt 0:00:01]} 7. f3 {[%emt 0:00:01]} O-O {[%emt 0:00:02]} 8. Bc4 {[%emt 0:00:01]} Nc6 {[%emt 0:00:01]} 9. Qd2 {[%emt 0:00:01]} Bd7 {[%emt 0:00:01]} 10. Bb3 {[%emt 0:00:01]} Rc8 {[%emt 0:00:01]} 11. O-O-O {[%emt 0:00:02]} Ne5 {[%emt 0:00:04]} 12. h4 {[%emt 0:00:00]} h5 {[%emt 0:00:01]} 13. g4 {[%emt 0:00:01]} hxg4 {[%emt 0:00:13]} 14. h5 {[%emt 0:00:01]} Nxh5 {[%emt 0:00:07]} 15. Bh6 {[%emt 0:00:02]} Nc4 {[%emt 0:00:25]} 16. Bxc4 {[%emt 0:00:27]} Rxc4 {[%emt 0:00:02]} 17. Bxg7 {[%emt 0:00:02]} Kxg7 {[%emt 0:00:07]} 18. Rxh5 {[%emt 0:00:02]} Rh8 {[%emt 0:01:41]} 19. Nf5+ {[%emt 0:01:33]} Bxf5 {[%emt 0:00:23]} 20. Rxh8 {[%emt 0:00:02]} Qxh8 {[%emt 0:00:03]} 21. exf5 {[%emt 0:00:01]} gxf3 {[%emt 0:00:19]} 22. fxg6 {[%emt 0:00:11]} fxg6 {[%emt 0:00:02]} 23. Qd5 {[%emt 0:00:06]} Rf4 {[%emt 0:00:04]} 24. Qxb7 {[%emt 0:00:21]} f2 {[%emt 0:00:01]} 25. Qxe7+ {[%emt 0:00:03]} Rf7 {[%emt 0:00:01]} 26. Qe2 {[%emt 0:00:10]} Qh6+ {[%emt 0:00:01]} 27. Kb1 {[%emt 0:00:01]} Qf4 {[%emt 0:00:01]} 28. Rf1 {[%emt 0:00:08]} g5 {[%emt 0:00:00]} 29. Ne4 {[%emt 0:00:06]} Re7 {[%emt 0:00:02]} 30. Qxf2 {[%emt 0:00:15]} Rxe4 {[%emt 0:00:02]} 31. Qxa7+ {[%emt 0:00:04]} Kg6 {[%emt 0:00:03]} 32. Qg1 {[%emt 0:00:07]} Qe5 {[%emt 0:00:01]} 33. a3 {[%emt 0:00:06]} d5 {[%emt 0:00:01]} 34. Qb6+ {[%emt 0:00:02]} Qe6 {[%emt 0:00:02]} 35. Qd8 {[%emt 0:00:03]} Re1+ {[%emt 0:00:02]} 36. Rxe1 {[%emt 0:00:01]} Qxe1+ {[%emt 0:00:00]} 37. Ka2 {[%emt 0:00:01]} Qe6 {[%emt 0:00:01]} 38. Qh8 {[%emt 0:00:04]} d4+ {[%emt 0:00:01]} 39. b3 {[%emt 0:00:00]} Qd5 {[%emt 0:00:03]} 40. Qe8+ {[%emt 0:00:02]} Kf6 {[%emt 0:00:01]} 41. Qe2 {[%emt 0:00:02]} Kf5 {[%emt 0:00:04]} 42. Qd3+ {[%emt 0:00:01]} Kf6 {[%emt 0:00:00]} 43. a4 {[%emt 0:00:01]} g4 {[%emt 0:00:02]} 44. a5 {[%emt 0:00:01]} Qxa5+ {[%emt 0:00:01]} 45. Kb2 Qd5 {[%emt 0:00:01]} 46. b4 {[%emt 0:00:03]} Kg5 {[%emt 0:00:02]} 47. b5 {[%emt 0:00:01]} g3 {[%emt 0:00:01]} 48. Qxg3+ {[%emt 0:00:01]} Kf5 {[%emt 0:00:01]} 49. Qd3+ {[%emt 0:00:01]} Ke6 {[%emt 0:00:01]} 50. Ka3 {[%emt 0:00:03]} 1-0

[Event "11th LCC Super Blitz 2019"]
[Site "London"]
[Date "2019.12.08"]
[Round "6.10"]
[White "Janula, Mariusz"]
[Black "Lovell, William Pm"]
[Result "0-1"]
[ECO "B20"]
[WhiteElo "1767"]
[BlackElo "1831"]
[Annotator "NA"]
[PlyCount "66"]
[EventDate "2019.12.08"]
[EventType "swiss"]
[EventCountry "ENG"]
[SourceTitle "playchess.com"]
[Source "ChessBase"]
[SourceQuality "1"]
[TimeControl "180+2"]

1. e4 {[%emt 0:00:00]} c5 {[%emt 0:00:00]} 2. b4 {[%emt 0:00:01]} cxb4 {[%emt 0:00:01]} 3. d4 {[%emt 0:00:02]} d6 {[%emt 0:00:01]} 4. c4 {[%emt 0:00:04]} bxc3 {[%emt 0:00:02]} 5. Nxc3 {[%emt 0:00:02]} g6 {[%emt 0:00:01]} 6. Be3 {[%emt 0:00:12]} Bg7 {[%emt 0:00:02]} 7. Qd2 {[%emt 0:00:01]} Nc6 {[%emt 0:00:03]} 8. Bc4 {[%emt 0:00:05]} e6 {[%emt 0:00:02]} 9. Nf3 {[%emt 0:00:09]} Nf6 {[%emt 0:00:11]} 10. h3 {[%emt 0:00:02]} Qa5 {[%emt 0:00:07]} 11. O-O {[%emt 0:00:07]} O-O {[%emt 0:00:01]} 12. Rac1 {[%emt 0:00:02]} d5 {[%emt 0:00:05]} 13. exd5 {[%emt 0:00:12]} Nxd5 {[%emt 0:00:11]} 14. Nxd5 {[%emt 0:00:14]} Qxd2 {[%emt 0:00:06]} 15. Nxd2 {[%emt 0:00:23]} exd5 {[%emt 0:00:01]} 16. Bxd5 {[%emt 0:00:01]} Nxd4 {[%emt 0:00:02]} 17. Rfe1 {[%emt 0:00:11]} Nf5 {[%emt 0:00:15]} 18. Bc5 {[%emt 0:00:08]} Rd8 {[%emt 0:00:04]} 19. g4 {[%emt 0:00:16]} Nd6 {[%emt 0:00:13]} 20. Bb3 {[%emt 0:00:11]} Nb5 {[%emt 0:00:29]} 21. Re7 {[%emt 0:00:25]} b6 {[%emt 0:00:29]} 22. Rxf7 {[%emt 0:00:07]} Kh8 {[%emt 0:00:02]} 23. Nf3 {[%emt 0:00:08]} bxc5 {[%emt 0:00:04]} 24. Rxc5 {[%emt 0:00:06]} Nd4 {[%emt 0:00:04]} 25. Bc4 {[%emt 0:00:09]} Nxf3+ {[%emt 0:00:05]} 26. Rxf3 {[%emt 0:00:02]} Rd1+ {[%emt 0:00:09]} 27. Kh2 {[%emt 0:00:03]} Bb7 {[%emt 0:00:01]} 28. Rf7 {[%emt 0:00:08]} Rh1+ {[%emt 0:00:14]} 29. Kg3 {[%emt 0:00:01]} Rg1+ {[%emt 0:00:01]} 30. Kh4 {[%emt 0:00:03]} Rf8 {[%emt 0:00:11]} 31. Rxb7 {[%emt 0:00:04]} Bf6+ {[%emt 0:00:04]} 32. g5 {[%emt 0:00:05]} Bd4 {[%emt 0:00:05]} 33. f4 {[%emt 0:00:19]} Bf2# {[%emt 0:00:06]} 0-1

[Event "11th LCC Super Blitz 2019"]
[Site "London"]
[Date "2019.12.08"]
[Round "6.10"]
[White "Thatte, Nandinee"]
[Black "Bird, Joel"]
[Result "0-1"]
[ECO "D17"]
[WhiteElo "1270"]
[BlackElo "2009"]
[Annotator "NA"]
[PlyCount "73"]
[EventDate "2019.12.08"]
[EventType "swiss"]
[EventCountry "ENG"]
[SourceTitle "playchess.com"]
[Source "ChessBase"]
[SourceQuality "1"]
[TimeControl "180+2"]

1. d4 {[%emt 0:00:00]} d5 {[%emt 0:00:00]} 2. c4 c6 3. Nc3 {[%emt 0:00:02]} Nf6 {[%emt 0:00:00]} 4. Nf3 {[%emt 0:00:01]} dxc4 {[%emt 0:00:01]} 5. a4 {[%emt 0:00:02]} Bf5 {[%emt 0:00:02]} 6. Bf4 {[%emt 0:00:04]} e6 {[%emt 0:00:11]} 7. e3 {[%emt 0:00:02]} Nd5 {[%emt 0:00:01]} 8. Bg3 {[%emt 0:00:22]} Bb4 {[%emt 0:00:09]} 9. Rc1 {[%emt 0:00:25]} Qa5 {[%emt 0:00:01]} 10. Bxc4 {[%emt 0:00:26]} Nxc3 {[%emt 0:00:23]} 11. bxc3 {[%emt 0:00:12]} Bxc3+ {[%emt 0:00:02]} 12. Nd2 {[%emt 0:00:02]} Nd7 {[%emt 0:00:11]} 13. Bc7 {[%emt 0:00:23]} Bxd2+ {[%emt 0:00:08]} 14. Qxd2 {[%emt 0:00:04]} Qxc7 {[%emt 0:00:03]} 15. O-O {[%emt 0:00:03]} O-O {[%emt 0:00:10]} 16. Rfe1 {[%emt 0:00:09]} Be4 {[%emt 0:00:08]} 17. f3 {[%emt 0:00:04]} Bd5 {[%emt 0:00:01]} 18. e4 {[%emt 0:00:03]} Bxc4 {[%emt 0:00:02]} 19. Rxc4 {[%emt 0:00:02]} Nb6 {[%emt 0:00:05]} 20. Rcc1 {[%emt 0:00:01]} Qd7 {[%emt 0:00:04]} 21. a5 {[%emt 0:00:30]} Nc8 {[%emt 0:00:01]} 22. Qc3 {[%emt 0:00:11]} Rd8 {[%emt 0:00:03]} 23. Rcd1 {[%emt 0:00:03]} Ne7 {[%emt 0:00:01]} 24. Qc5 {[%emt 0:00:12]} Qd6 {[%emt 0:00:07]} 25. Qc3 {[%emt 0:00:09]} h6 {[%emt 0:00:02]} 26. Re2 {[%emt 0:00:08]} Rac8 {[%emt 0:00:01]} 27. Red2 {[%emt 0:00:02]} Qf4 {[%emt 0:00:08]} 28. Qb2 {[%emt 0:00:04]} Qc7 {[%emt 0:00:05]} 29. Qc3 {[%emt 0:00:03]} b6 {[%emt 0:00:07]} 30. axb6 {[%emt 0:00:02]} axb6 {[%emt 0:00:01]} 31. Rc2 {[%emt 0:00:05]} Qb7 {[%emt 0:00:13]} 32. Rcd2 {[%emt 0:00:03]} Ra8 {[%emt 0:00:18]} 33. Rb2 {[%emt 0:00:04]} Qa6 {[%emt 0:00:05]} 34. Qb3 {[%emt 0:00:02]} b5 {[%emt 0:00:04]} 35. Qd3 {[%emt 0:00:02]} Qb6 {[%emt 0:00:02]} 36. Qc3 {[%emt 0:00:02]} c5 {[%emt 0:00:10]} 37. d5 {[%emt 0:00:03]} 0-1

[Event "11th LCC Super Blitz 2019"]
[Site "London"]
[Date "2019.12.08"]
[Round "6.11"]
[White "Kennedy, Craig"]
[Black "Kirupakaran, Vishnu"]
[Result "1-0"]
[ECO "A11"]
[WhiteElo "1899"]
[BlackElo "1871"]
[Annotator "NA"]
[PlyCount "51"]
[EventDate "2019.12.08"]
[EventType "swiss"]
[EventCountry "ENG"]
[SourceTitle "playchess.com"]
[Source "ChessBase"]
[SourceQuality "1"]
[TimeControl "180+2"]

1. g3 {[%emt 0:00:01]} d5 {[%emt 0:00:15]} 2. Bg2 {[%emt 0:00:01]} Nf6 {[%emt 0:00:01]} 3. d3 {[%emt 0:00:02]} e5 {[%emt 0:00:01]} 4. c4 {[%emt 0:00:03]} c6 {[%emt 0:00:07]} 5. cxd5 {[%emt 0:00:06]} cxd5 {[%emt 0:00:01]} 6. Nf3 {[%emt 0:00:02]} Nc6 {[%emt 0:00:01]} 7. O-O {[%emt 0:00:02]} Be7 {[%emt 0:00:09]} 8. a3 {[%emt 0:00:03]} O-O {[%emt 0:00:02]} 9. b4 {[%emt 0:00:01]} a6 {[%emt 0:00:03]} 10. Bb2 {[%emt 0:00:02]} Qd6 {[%emt 0:00:14]} 11. Nc3 {[%emt 0:00:06]} Bg4 {[%emt 0:00:07]} 12. h3 {[%emt 0:00:03]} Bh5 {[%emt 0:00:03]} 13. Rc1 {[%emt 0:00:13]} Rfc8 {[%emt 0:00:27]} 14. Na4 {[%emt 0:00:06]} Nd7 {[%emt 0:00:29]} 15. Qb3 {[%emt 0:00:12]} f6 {[%emt 0:00:49]} 16. Rfe1 {[%emt 0:00:20]} Bf7 {[%emt 0:00:02]} 17. Qd1 {[%emt 0:00:09]} a5 {[%emt 0:00:07]} 18. b5 {[%emt 0:00:05]} Na7 {[%emt 0:00:03]} 19. Nc3 {[%emt 0:00:31]} Nc5 {[%emt 0:00:14]} 20. a4 {[%emt 0:00:09]} d4 {[%emt 0:00:10]} 21. Nb1 {[%emt 0:00:26]} Bb3 {[%emt 0:00:02]} 22. Qd2 {[%emt 0:00:08]} Bxa4 {[%emt 0:00:12]} 23. Ba3 {[%emt 0:00:16]} Bxb5 {[%emt 0:00:06]} 24. Qa2+ {[%emt 0:00:07]} Kh8 {[%emt 0:00:02]} 25. Nh4 {[%emt 0:00:09]} Rab8 {[%emt 0:00:05]} 26. Nf5 {[%emt 0:00:04]} 1-0

[Event "11th LCC Super Blitz 2019"]
[Site "London"]
[Date "2019.12.08"]
[Round "6.11"]
[White "Mohnblatt, Nicolas"]
[Black "Vikas Narayan S P"]
[Result "1-0"]
[ECO "D00"]
[WhiteElo "1689"]
[BlackElo "1026"]
[Annotator "NA"]
[PlyCount "51"]
[EventDate "2019.12.08"]
[EventType "swiss"]
[EventCountry "ENG"]
[SourceTitle "playchess.com"]
[Source "ChessBase"]
[SourceQuality "1"]
[TimeControl "180+2"]

1. d4 {[%emt 0:00:00]} d5 {[%emt 0:00:00]} 2. Nc3 {[%emt 0:00:01]} Nf6 {[%emt 0:00:00]} 3. Bf4 {[%emt 0:00:02]} e6 {[%emt 0:00:00]} 4. Nb5 {[%emt 0:00:03]} Na6 {[%emt 0:00:22]} 5. a3 {[%emt 0:00:01]} Bd7 {[%emt 0:00:08]} 6. Nc3 {[%emt 0:00:08]} c5 {[%emt 0:00:03]} 7. e3 {[%emt 0:00:04]} cxd4 {[%emt 0:00:09]} 8. exd4 {[%emt 0:00:01]} Nc7 {[%emt 0:00:05]} 9. Nf3 {[%emt 0:00:03]} Be7 {[%emt 0:00:03]} 10. Bd3 {[%emt 0:00:01]} O-O {[%emt 0:00:03]} 11. O-O {[%emt 0:00:04]} Rc8 {[%emt 0:00:04]} 12. Ne5 {[%emt 0:00:04]} a6 {[%emt 0:00:14]} 13. Re1 {[%emt 0:00:05]} Bb5 {[%emt 0:00:03]} 14. Nxb5 {[%emt 0:00:03]} Nxb5 {[%emt 0:00:03]} 15. c3 {[%emt 0:00:02]} Nd7 {[%emt 0:00:03]} 16. Re3 {[%emt 0:01:00]} Nd6 {[%emt 0:00:08]} 17. Rh3 {[%emt 0:00:08]} Nf5 {[%emt 0:00:21]} 18. Qh5 {[%emt 0:00:21]} h6 {[%emt 0:00:20]} 19. g4 {[%emt 0:00:10]} Nf6 {[%emt 0:00:24]} 20. Nxf7 {[%emt 0:00:44]} Rxf7 {[%emt 0:00:26]} 21. Qg6 {[%emt 0:00:03]} Ne4 {[%emt 0:00:37]} 22. gxf5 {[%emt 0:00:09]} exf5 {[%emt 0:00:02]} 23. Bxh6 {[%emt 0:00:14]} Bh4 {[%emt 0:00:01]} 24. f3 {[%emt 0:00:11]} Qe7 {[%emt 0:00:06]} 25. fxe4 {[%emt 0:00:02]} fxe4 {[%emt 0:00:05]} 26. Be2 {[%emt 0:00:02]} 1-0

[Event "11th LCC Super Blitz 2019"]
[Site "London"]
[Date "2019.12.08"]
[Round "6.12"]
[White "Srivastava, Arnav"]
[Black "Manmay Chopra"]
[Result "1/2-1/2"]
[ECO "E92"]
[WhiteElo "1728"]
[BlackElo "1354"]
[Annotator "NA"]
[PlyCount "113"]
[EventDate "2019.12.08"]
[EventType "swiss"]
[EventCountry "ENG"]
[SourceTitle "playchess.com"]
[Source "ChessBase"]
[SourceQuality "1"]
[TimeControl "180+2"]

1. d4 {[%emt 0:00:00]} Nf6 {[%emt 0:00:00]} 2. c4 {[%emt 0:00:01]} g6 {[%emt 0:00:00]} 3. Nc3 {[%emt 0:00:00]} Bg7 {[%emt 0:00:00]} 4. e4 {[%emt 0:00:01]} d6 {[%emt 0:00:01]} 5. Nf3 {[%emt 0:00:00]} O-O {[%emt 0:00:01]} 6. Be2 {[%emt 0:00:01]} e5 {[%emt 0:00:01]} 7. dxe5 {[%emt 0:00:01]} dxe5 {[%emt 0:00:01]} 8. Qxd8 {[%emt 0:00:01]} Rxd8 {[%emt 0:00:01]} 9. Bg5 {[%emt 0:00:00]} Nbd7 {[%emt 0:00:31]} 10. Rd1 {[%emt 0:00:15]} Re8 {[%emt 0:00:13]} 11. b4 {[%emt 0:00:29]} c6 {[%emt 0:00:13]} 12. O-O {[%emt 0:00:03]} h6 {[%emt 0:00:01]} 13. Be3 {[%emt 0:00:23]} Nf8 {[%emt 0:00:13]} 14. h3 {[%emt 0:00:12]} Bd7 {[%emt 0:00:07]} 15. Rd2 {[%emt 0:00:06]} g5 {[%emt 0:00:06]} 16. Rfd1 {[%emt 0:00:09]} Rad8 {[%emt 0:00:03]} 17. c5 {[%emt 0:00:00]} Ng6 {[%emt 0:00:14]} 18. Bc4 {[%emt 0:00:01]} Kf8 {[%emt 0:00:09]} 19. a4 {[%emt 0:00:07]} Nf4 {[%emt 0:00:04]} 20. Kh2 {[%emt 0:00:16]} Ne6 {[%emt 0:00:05]} 21. Nxe5 {[%emt 0:00:11]} Ke7 {[%emt 0:00:28]} 22. Nxd7 {[%emt 0:00:06]} Nxd7 {[%emt 0:00:03]} 23. Ne2 {[%emt 0:00:13]} Ne5 {[%emt 0:00:22]} 24. Bb3 {[%emt 0:00:02]} Rxd2 {[%emt 0:00:12]} 25. Rxd2 {[%emt 0:00:01]} Rd8 {[%emt 0:00:01]} 26. Rxd8 {[%emt 0:00:14]} Nxd8 {[%emt 0:00:01]} 27. Bd4 {[%emt 0:00:03]} Ne6 {[%emt 0:00:14]} 28. Bc3 {[%emt 0:00:02]} f6 {[%emt 0:00:08]} 29. Kg3 {[%emt 0:00:02]} h5 {[%emt 0:00:04]} 30. h4 {[%emt 0:00:10]} Nd3 {[%emt 0:00:11]} 31. hxg5 {[%emt 0:00:22]} Nxg5 {[%emt 0:00:00]} 32. Bc2 {[%emt 0:00:12]} Nxe4+ {[%emt 0:00:02]} 33. Kf3 {[%emt 0:00:06]} Nxc3 {[%emt 0:00:07]} 34. Bxd3 {[%emt 0:00:01]} Nxe2 {[%emt 0:00:01]} 35. Kxe2 {[%emt 0:00:01]} Ke6 {[%emt 0:00:01]} 36. Ke3 {[%emt 0:00:00]} Bh6+ {[%emt 0:00:02]} 37. f4 {[%emt 0:00:01]} f5 {[%emt 0:00:01]} 38. g3 {[%emt 0:00:02]} Kf6 {[%emt 0:00:01]} 39. Bc4 {[%emt 0:00:00]} b6 {[%emt 0:00:05]} 40. b5 {[%emt 0:00:05]} Bf8 {[%emt 0:00:08]} 41. bxc6 {[%emt 0:00:02]} Bxc5+ {[%emt 0:00:01]} 42. Kd3 {[%emt 0:00:02]} Ke7 {[%emt 0:00:00]} 43. Bb5 {[%emt 0:00:06]} Kd6 {[%emt 0:00:04]} 44. Ke2 {[%emt 0:00:04]} Kc7 {[%emt 0:00:00]} 45. Kf3 {[%emt 0:00:02]} Bb4 {[%emt 0:00:00]} 46. Kg2 {[%emt 0:00:00]} Kd6 {[%emt 0:00:01]} 47. Kh3 {[%emt 0:00:01]} Be1 {[%emt 0:00:02]} 48. Kh4 {[%emt 0:00:01]} a6 {[%emt 0:00:03]} 49. Bxa6 {[%emt 0:00:01]} Kxc6 {[%emt 0:00:00]} 50. Bb5+ {[%emt 0:00:00]} Kd5 {[%emt 0:00:01]} 51. Kxh5 {[%emt 0:00:01]} Bxg3 {[%emt 0:00:02]} 52. Kg5 {[%emt 0:00:01]} Ke4 {[%emt 0:00:01]} 53. Bc6+ {[%emt 0:00:03]} Ke3 {[%emt 0:00:01]} 54. Kxf5 {[%emt 0:00:02]} Bxf4 {[%emt 0:00:01]} 55. Ke6 {[%emt 0:00:01]} Kd4 {[%emt 0:00:03]} 56. Kd7 {[%emt 0:00:01]} Kc5 {[%emt 0:00:00]} 57. Bb5 {[%emt 0:00:01]} 1/2-1/2

[Event "11th LCC Super Blitz 2019"]
[Site "London"]
[Date "2019.12.08"]
[Round "6.12"]
[White "Bergner, Matthias"]
[Black "Muhunthan, Charukgan"]
[Result "1-0"]
[ECO "A02"]
[WhiteElo "1632"]
[BlackElo "1401"]
[Annotator "NA"]
[PlyCount "99"]
[EventDate "2019.12.08"]
[EventType "swiss"]
[EventCountry "ENG"]
[SourceTitle "playchess.com"]
[Source "ChessBase"]
[SourceQuality "1"]
[TimeControl "180+2"]

1. d4 {[%emt 0:00:00]} Nf6 {[%emt 0:00:00]} 2. e3 {[%emt 0:00:00]} e6 {[%emt 0:00:00]} 3. f4 {[%emt 0:00:01]} b6 {[%emt 0:00:04]} 4. Nf3 {[%emt 0:00:02]} Bb7 {[%emt 0:00:01]} 5. Be2 {[%emt 0:00:02]} Be7 {[%emt 0:00:02]} 6. O-O {[%emt 0:00:02]} O-O {[%emt 0:00:03]} 7. c4 {[%emt 0:00:04]} c5 {[%emt 0:00:02]} 8. dxc5 {[%emt 0:00:05]} Bxc5 {[%emt 0:00:01]} 9. Nd4 {[%emt 0:00:07]} Nc6 {[%emt 0:00:19]} 10. Kh1 {[%emt 0:00:20]} Qc7 {[%emt 0:00:17]} 11. Nd2 {[%emt 0:00:23]} Nxd4 {[%emt 0:00:20]} 12. exd4 {[%emt 0:00:02]} Bxd4 {[%emt 0:00:01]} 13. Nf3 {[%emt 0:00:11]} Bc5 {[%emt 0:00:07]} 14. Bd2 {[%emt 0:00:14]} Rad8 {[%emt 0:00:01]} 15. Bc3 {[%emt 0:00:02]} Be7 {[%emt 0:00:03]} 16. Qc2 {[%emt 0:00:05]} h6 {[%emt 0:00:03]} 17. b3 {[%emt 0:00:02]} d5 {[%emt 0:00:03]} 18. Rad1 {[%emt 0:00:15]} dxc4 {[%emt 0:00:38]} 19. Bxc4 {[%emt 0:00:09]} Ne4 {[%emt 0:00:02]} 20. Be5 {[%emt 0:00:19]} Bd6 {[%emt 0:00:25]} 21. Bxd6 {[%emt 0:00:09]} Nxd6 {[%emt 0:00:03]} 22. Bd3 {[%emt 0:00:12]} Qxc2 {[%emt 0:00:25]} 23. Bxc2 {[%emt 0:00:01]} Ne4 {[%emt 0:00:38]} 24. Bxe4 {[%emt 0:00:29]} Bxe4 {[%emt 0:00:01]} 25. Ne5 {[%emt 0:00:11]} Bc2 {[%emt 0:00:03]} 26. Rc1 {[%emt 0:00:03]} Bg6 {[%emt 0:00:01]} 27. Nxg6 {[%emt 0:00:02]} fxg6 {[%emt 0:00:01]} 28. g3 {[%emt 0:00:01]} Rf6 {[%emt 0:00:01]} 29. Kg2 {[%emt 0:00:02]} a5 {[%emt 0:00:00]} 30. Rf2 {[%emt 0:00:06]} Rb8 {[%emt 0:00:01]} 31. Rfc2 {[%emt 0:00:02]} Kf7 {[%emt 0:00:02]} 32. Rc7+ {[%emt 0:00:01]} Kg8 {[%emt 0:00:01]} 33. Rd1 {[%emt 0:00:02]} Kh7 {[%emt 0:00:02]} 34. Rdd7 {[%emt 0:00:01]} Rg8 {[%emt 0:00:04]} 35. Rb7 {[%emt 0:00:01]} e5 {[%emt 0:00:03]} 36. fxe5 {[%emt 0:00:02]} Re6 {[%emt 0:00:00]} 37. Re7 {[%emt 0:00:04]} Re8 {[%emt 0:00:09]} 38. Rxe8 {[%emt 0:00:02]} Rxe8 {[%emt 0:00:01]} 39. Rxb6 {[%emt 0:00:02]} Rxe5 {[%emt 0:00:00]} 40. a4 {[%emt 0:00:05]} g5 {[%emt 0:00:03]} 41. Rb5 {[%emt 0:00:02]} Re3 {[%emt 0:00:04]} 42. Rxa5 {[%emt 0:00:03]} Rxb3 {[%emt 0:00:01]} 43. Ra8 {[%emt 0:00:01]} Ra3 {[%emt 0:00:01]} 44. a5 {[%emt 0:00:01]} Kg6 {[%emt 0:00:01]} 45. a6 {[%emt 0:00:01]} Kf7 {[%emt 0:00:01]} 46. a7 {[%emt 0:00:01]} g4 {[%emt 0:00:10]} 47. Kf2 {[%emt 0:00:04]} h5 {[%emt 0:00:00]} 48. Ke2 {[%emt 0:00:02]} g5 {[%emt 0:00:02]} 49. Kd2 {[%emt 0:00:02]} Kg7 {[%emt 0:00:02]} 50. Kc2 {[%emt 0:00:01]} 1-0